Cogmind - Beta 14 @@@ ROGUE MODE // 2024.08.13 @ 18:50:35 Player: Daffa0360 Result: Self-destructed Performance ------------- Evolutions (0) 0 Regions Visited (4) 800 Robots Destroyed (18) 90 Value Destroyed (346) 346 Prototype IDs (25) 500 Alien Tech Used (0) 0 Bonus (300) 300 TOTAL SCORE: 2036 Bonus ------- Aligned with FarCom 300 Cogmind --------- Core Integrity 38/250 Matter 300/300 Energy 100/100 System Corruption 4% Temperature Cool (20) Movement Core (150) Ox2 Location -9/Mines Parts ------- > --- POWER (1) -------- (None) > --- PROPULSION (2) --- (None) > --- UTILITY (2) ------ Small Storage Unit Hacking Suite > --- WEAPON (2) ------- Longsword +1 > --- INVENTORY (8) ---- Ion Engine Structural Scanner Improved Terrain Scanner Seismic Detector Targeting Computer Utility Shielding Datajack Ripper Peak State ------------ > --- POWER ------------ Ion Engine > --- PROPULSION ------- Aluminum Leg Aluminum Leg > --- UTILITY ---------- Small Storage Unit Hacking Suite > --- WEAPON ----------- Assault Rifle Field Lobotomy Kit > --- INVENTORY -------- Ion Engine Structural Scanner Improved Terrain Scanner Seismic Detector Targeting Computer Utility Shielding Datajack Ripper [Rating: 19] Favorites ----------- Power Ion Engine Engine Ion Engine Propulsion Aluminum Leg Leg Aluminum Leg Wheel Compact Wheel Utility Small Storage Unit Storage Small Storage Unit Hackware Hacking Suite Weapon Assault Rifle Energy Gun Small Laser Ballistic Gun Assault Rifle Special Weapon Field Lobotomy Kit Impact Weapon Hammer Slashing Weapon Longsword +1 Build | -11 -10 -10 -10 -9 ------- Run | Yrd Mat Min Exi Min Slots Evolved . | . . . . . Power . | . . . . . Propulsion . | . . . . . Utility . | . . . . . Weapon . | . . . . . Parts Attached 18 | 6 9 1 2 . Power 1 | 1 . . . . Engine 1 | 1 . . . . Core . | . . . . . Reactor . | . . . . . Propulsion 5 | 2 3 . . . Treads . | . . . . . Leg 3 | . 3 . . . Wheel 2 | 2 . . . . Hover . | . . . . . Flight . | . . . . . Utility 2 | 1 1 . . . Device . | . . . . . Storage 1 | 1 . . . . Processor . | . . . . . Hackware 1 | . 1 . . . Protection . | . . . . . Artifact . | . . . . . Weapon 10 | 2 5 1 2 . Energy Gun 1 | 1 . . . . Energy Cannon . | . . . . . Ballistic Gun 6 | 1 4 1 . . Ballistic Cannon . | . . . . . Launcher . | . . . . . Special Weapon 1 | . . . 1 . Impact Weapon 1 | . 1 . . . Slashing Weapon 1 | . . . 1 . Piercing Weapon . | . . . . . Special Melee Weapon . | . . . . . Unidentified Prototypes . | . . . . . Parts Lost 6 | . 2 . . 4 Power 1 | . . . . 1 Propulsion 3 | . 1 . . 2 Utility . | . . . . . Weapon 2 | . 1 . . 1 Highest Loss Streak 4 | . 1 . . 4 To Critical Strikes . | . . . . . Average Slot Usage (%) 92 | . 87 100 100 100 Engine 14 | . 14 14 14 14 Leg 18 | . 12 28 28 28 Wheel 9 | . 15 . . . Storage 14 | . 14 14 14 14 Hackware 7 | . 3 14 14 14 Ballistic Gun 24 | . 26 25 21 14 Slashing Weapon 1 | . . . 5 14 Peak Build Rating 19 | 6 10 10 19 17 Average Rating 8 | 4 7 9 13 16 On Entrance 8 | . 6 9 10 17 Naked Turns . | . . . . . Heaviest Build 15 | 13 14 14 15 15 Greatest Support 32 | 32 32 20 20 20 Greatest Overweight (x) 4 | 4 1 . . 2 Average Overweight (x) . | . . . . . Largest Inventory Capacity 8 | 8 8 8 8 8 Average Capacity 7 | 7 8 8 8 8 Most Carried 8 | 5 8 8 8 8 Average Carried 6 | 2 6 7 8 8 Final Capacity 8 | 8 8 8 8 8 Final Carried 8 | 5 7 8 8 8 Class Distribution -------------------- 100% | Mutant Dominant Class ---------------- Mutant | -10/Materials Mutant | -10/Mines Mutant | -10/Exiles Mutant | -9/Mines Resources | -11 -10 -10 -10 -9 ----------- Run | Yrd Mat Min Exi Min Matter Collected 607 | 229 274 104 . . Remotely . | . . . . . Salvage Created 433 | 26 370 37 . . Parts 39 | 5 29 5 . . Haulers Intercepted . | . . . . . Recyclers Shooed . | . . . . . Parts Field Recycled . | . . . . . Retrieved Matter . | . . . . . Parts Self-Destructed . | . . . . . Prevented . | . . . . . Kills | -11 -10 -10 -10 -9 ------- Run | Yrd Mat Min Exi Min Combat Hostiles Destroyed 15 | . 12 3 . . Guns 15 | . 12 3 . . Classes Destroyed 4 | 1 3 . . . Tunneler 1 | 1 . . . . Operator 2 | . 2 . . . Swarmer 9 | . 6 3 . . Grunt 6 | . 6 . . . Best Kill Streak 3 | 1 3 2 . . Combat Bots Only 3 | . 3 2 . . Max Kills in Single Turn 1 | 1 1 1 . . Gunslinging . | . . . . . Exploded . | . . . . . Melee . | . . . . . Uniques/NPCs Destroyed . | . . . . . Combat | -11 -10 -10 -10 -9 -------- Run | Yrd Mat Min Exi Min Hostile Shots Fired 118 | . 73 13 . 32 Missed 38 | . 25 4 . 9 Damage Taken 876 | . 455 75 . 346 Core 212 | . 91 . . 121 Absorbed by Shields . | . . . . . Core Remaining (%) 100 | 100 . . . . Volleys Fired 47 | 2 38 7 . . Largest 2 | 2 2 1 . . Hottest 60 | 60 40 20 . . Shots Fired 86 | 4 75 7 . . Gun 86 | 4 75 7 . . Cannon . | . . . . . Launcher . | . . . . . Special . | . . . . . Kinetic 84 | 2 75 7 . . Thermal 2 | 2 . . . . Explosive . | . . . . . Electromagnetic . | . . . . . Robot Hit Streak 13 | 1 13 2 . . Robot Miss Streak 4 | 1 4 3 . . Penetration Max . | . . . . . Secondary Targets . | . . . . . Shots Hit Robots 52 | 2 46 3 . 1 Core Hits 24 | 1 20 3 . . Critical Kills 1 | . 1 . . . Critical Parts Destroyed . | . . . . . Critical Strikes 1 | . 1 . . . Destroy 1 | . 1 . . . Melee Attacks 6 | . 1 . . 5 Impact 1 | . 1 . . . Slashing 5 | . . . . 5 Piercing . | . . . . . Sneak Attacks . | . . . . . Combat Hostiles . | . . . . . Follow-up Attacks . | . . . . . Damage Inflicted 739 | 21 606 67 . 45 Guns 694 | 21 606 67 . . Cannons . | . . . . . Explosions . | . . . . . Melee 45 | . . . . 45 Ramming . | . . . . . Kinetic 673 | . 606 67 . . Thermal 21 | 21 . . . . Explosive . | . . . . . Electromagnetic . | . . . . . Impact . | . . . . . Slashing 45 | . . . . 45 Piercing . | . . . . . Highest Corruption 4 | . . . . 4 Average Corruption 4 | . . . . 4 Corruption Purged . | . . . . . Corruption Blocked . | . . . . . Overload Shots . | . . . . . Overflow Damage . | . . . . . Projectiles . | . . . . . Explosions . | . . . . . Melee . | . . . . . Knockbacks . | . . . . . Impact . | . . . . . Kinetic . | . . . . . Secondary . | . . . . . Self-Inflicted Damage . | . . . . . Shots . | . . . . . Rammed . | . . . . . Targets Rammed . | . . . . . Kicked . | . . . . . Crushed . | . . . . . Highest Temperature 16 | . 2 . . 16 Average Temperature 8 | . 2 . . 10 Received Heat Transfer 270 | . 150 . . 120 Siege Activations . | . . . . . Robots Corrupted . | . . . . . Combat Hostiles . | . . . . . Parts Fried . | . . . . . Impact Corruptions . | . . . . . Robots Melted . | . . . . . Combat Hostiles . | . . . . . Parts Melted . | . . . . . Heat Transferred 50 | 50 . . . . Parts Sabotaged . | . . . . . Parts Stolen . | . . . . . Parts Stripped . | . . . . . Power Chain Reactions . | . . . . . Alert | -11 -10 -10 -10 -9 ------- Run | Yrd Mat Min Exi Min Peak Influence 273 | 5 273 205 . 2 Initial 103 | . 3 103 . . Average 122 | 1 122 173 . . Maximum Alert Level 1 | . 1 1 . . Low Security (%) 78 | 100 87 40 . 100 Level 1 21 | . 12 59 . . Level 2 . | . . . . . Level 3 . | . . . . . Level 4 . | . . . . . Level 5 . | . . . . . High Security . | . . . . . Max Security . | . . . . . Squads Dispatched 2 | . 2 . . . Investigation . | . . . . . Extermination . | . . . . . Reinforcement 2 | . 2 . . . Assault . | . . . . . Garrison . | . . . . . Intercept . | . . . . . Searches Triggered . | . . . . . Construction Impeded . | . . . . . Haulers Reinforced . | . . . . . Active Scanning Responses . | . . . . . Cargo Convoy Interrupts . | . . . . . Stealth | -11 -10 -10 -10 -9 --------- Run | Yrd Mat Min Exi Min Distress Signals . | . . . . . Communications Jammed . | . . . . . Distress Signals . | . . . . . Times Spotted 52 | . 26 4 . 22 Peak Tracking Total 20 | . 6 3 . 20 Tactical Retreats 5 | . 3 1 . 1 Traps | -11 -10 -10 -10 -9 ------- Run | Yrd Mat Min Exi Min Traps Triggered 1 | . 1 . . . Indirectly . | . . . . . Trap Hack Attempts . | . . . . . Triggered . | . . . . . Disarmed . | . . . . . Reprogrammed . | . . . . . Reused . | . . . . . Traps Extracted . | . . . . . Installed . | . . . . . Triggered . | . . . . . Machines | -11 -10 -10 -10 -9 ---------- Run | Yrd Mat Min Exi Min Machines Disabled . | . . . . . Max in Single Turn . | . . . . . Machines Repaired . | . . . . . Machines Dismantled . | . . . . . Machines Sabotaged . | . . . . . Overloaded Fab Kills . | . . . . . Hacking | -11 -10 -10 -10 -9 --------- Run | Yrd Mat Min Exi Min Machines Accessed 8 | . 5 1 2 . Terminals 6 | . 5 1 . . Fabricators . | . . . . . Repair Stations . | . . . . . Recycling Units . | . . . . . Scanalyzers . | . . . . . Garrison Access . | . . . . . Total Hacks 19 | . 12 3 4 . Successful 11 | . 4 3 4 . Failed 8 | . 8 . . . Catastrophic . | . . . . . Database Lockouts . | . . . . . Manual 4 | . 2 1 1 . Terminals 15 | . 12 3 . . Fabricators . | . . . . . Repair Stations . | . . . . . Recycling Units . | . . . . . Scanalyzers . | . . . . . Garrison Access . | . . . . . Terminal Hacks 9 | . 3 2 4 . Record 3 | . . . 3 . Prototype ID Bank 1 | . 1 . . . Alert Level 1 | . 1 . . . Locate Traps 1 | . 1 . . . Patrol Status 1 | . . 1 . . Zone Layout 1 | . . 1 . . Derelict Proto ID Bank 1 | . . . 1 . Fabricator Hacks . | . . . . . Repair Station Hacks . | . . . . . Recycling Unit Hacks . | . . . . . Scanalyzer . | . . . . . Garrison Access Hacks . | . . . . . Unauthorized Hacks 2 | . 1 1 . . Terminals 2 | . 1 1 . . Track 2 | . 1 1 . . Fabricators . | . . . . . Repair Stations . | . . . . . Recycling Units . | . . . . . Scanalyzers . | . . . . . Garrison Access . | . . . . . Data Cores Recovered . | . . . . . Used . | . . . . . Hacking Detections 3 | . 3 . . . Full Trace Events 1 | . 1 . . . Feedback Events . | . . . . . Feedback Blocked . | . . . . . Robot Schematics Acquired . | . . . . . Robots Built . | . . . . . Authchips . | . . . . . Time . | . . . . . Total Robot Build Rating . | . . . . . Part Schematics Acquired . | . . . . . Parts Built . | . . . . . Authchips . | . . . . . Time . | . . . . . Total Part Build Rating . | . . . . . Parts Repaired . | . . . . . Time . | . . . . . Parts Recycled . | . . . . . Recycled Matter . | . . . . . Retrieved Matter . | . . . . . Retrieved Components . | . . . . . Parts Scanalyzed . | . . . . . Part Schematics Acquired . | . . . . . Parts Damaged . | . . . . . Bothacking | -11 -10 -10 -10 -9 ------------ Run | Yrd Mat Min Exi Min Used RIF Installer . | . . . . . Robots Hacked . | . . . . . Non-combat . | . . . . . Combat . | . . . . . Robot Hacks Applied . | . . . . . Relay Couplers Released . | . . . . . Fabnet Peak Effective % . | . . . . . Robots Rewired . | . . . . . Allies Hacked . | . . . . . Hacks Repelled . | . . . . . Allies | -11 -10 -10 -10 -9 -------- Run | Yrd Mat Min Exi Min Total Allies . | . . . . . Largest Group . | . . . . . Highest-Rated Group . | . . . . . Highest-Rated Ally . | . . . . . Total Orders . | . . . . . Ally Attacks . | . . . . . Total Damage . | . . . . . Kills . | . . . . . Allies Corrupted . | . . . . . Allies Melted . | . . . . . Intel | -11 -10 -10 -10 -9 ------- Run | Yrd Mat Min Exi Min Robot Analysis Total . | . . . . . Derelict Logs Recovered 1 | . . 1 . . Drone Launches . | . . . . . Drone Recoveries . | . . . . . Exploration | -11 -10 -10 -10 -9 ------------- Run | Yrd Mat Min Exi Min Turns Passed 1406 | 81 788 249 260 28 Spaces Moved 947 | 48 482 191 214 12 Core 19 | 17 . . . 2 Treads . | . . . . . Legs 586 | . 171 191 214 10 Wheels 342 | 31 311 . . . Hover . | . . . . . Flight . | . . . . . Fastest Speed 50 | 50 100 120 120 120 Average Speed 114 | 120 108 120 120 125 Slowest Speed 250 | 250 190 120 120 150 Overloaded Moves . | . . . . . Propulsion Burnouts . | . . . . . Robots Hopped . | . . . . . Cave-ins Triggered . | . . . . . Exploration Rate (%) 38 | 4 80 43 60 7 Regions Visited 4 Branch Regions 3 Pre-discovered Areas 1 | . . . 1 . Known Exits Taken . | . . . . . Unknown Exits Taken 4 | 1 1 1 1 . Scrap Searched 2 | . . 2 . . Spaces Dug 5 | . 1 . . 4 Terrain Destroyed 5 | . 1 . . 4 Melee 5 | . 1 . . 4 Projectile . | . . . . . AOE . | . . . . . Terrain Rammed . | . . . . . Walls Destroyed . | . . . . . Machines Disabled . | . . . . . Actions | -11 -10 -10 -10 -9 --------- Run | Yrd Mat Min Exi Min Total 1177 | 66 670 204 217 20 Wait 135 | . 129 3 . 3 Move 943 | 47 481 190 213 12 Hop . | . . . . . Pick Up 21 | 11 8 2 . . Fast Attach 4 | . 2 . 2 . Attach 10 | 6 3 1 . . Detach . | . . . . . Swap 4 | . 4 . . . Drop 7 | . 4 1 2 . Fire 47 | 2 38 7 . . Melee 6 | . 1 . . 5 Ram . | . . . . . Kick . | . . . . . Crush . | . . . . . Escape Stasis . | . . . . . Rewire . | . . . . . Trap . | . . . . . Miscellaneous . | . . . . . Route ------- -11/Scrapyard -10/Materials (discovered 3 exits: [*Mat x2] / *Min) -10/Mines -10/Exiles -9/Mines History --------- Turn | Location | Event 11 | -11/Scrapyard | Discovered new exit (range 16) 82 | -11/Scrapyard | Entered Materials 199 | -10/Materials | Discovered new exit (range 8) 314 | -10/Materials | Build established: Mutant 613 | -10/Materials | Discovered new exit (range 15) 621 | -10/Materials | Discovered new exit (range 10) 870 | -10/Materials | Entered Mines 925 | -10/Mines | A weapon hastily lodged in a ceiling crevice suddenly fell to the ground 954 | -10/Mines | Learned Materials terminal intel 1114 | -10/Mines | Deemed a non-threat by the Exiles lab entrance 1114 | -10/Mines | Discovered new exit (range 5) 1119 | -10/Mines | Entered Exiles 1149 | -10/Exiles | Met 8R-AWN 1169 | -10/Exiles | Met EX-HEX 1205 | -10/Exiles | Met EX-BIN 1219 | -10/Exiles | Aligned with FarCom system 1220 | -10/Exiles | Given EX-Vault access code 1248 | -10/Exiles | Opened EX-Vault 1259 | -10/Exiles | Found Field Lobotomy Kit 1264 | -10/Exiles | Found Longsword +1 1288 | -10/Exiles | Warned to stay clear of 0b10 Research branches 1320 | -10/Exiles | Met EX-DEC 1329 | -10/Exiles | Learned location of Zion (-6) 1363 | -10/Exiles | Discovered new exit (range 14) 1379 | -10/Exiles | Left Exiles lab with Longsword +1 1379 | -10/Exiles | Entered Mines 1380 | -9/Mines | Assembled infested the area 1405 | -9/Mines | Core integrity fell below 50% 1407 | -9/Mines | Self-destructed Last Messages --------------- Who left my Assembled plushie in the Analyzer again?! I'm not erasing this message until I get an answer. --BIN >>Record "MSG004795-02" I just repaired it not long ago, I think someone on the outside is tampering with our system. --AM-PHS 01363_ EXIT=FOUND LOCATION=UNKNOWN GOAL=ESCAPE 01379_ Receiving FarCom transmissions... 01380_ ALERT: Infestation in the mines, dispatching Demolisher response squad. 01380_ A derelict wanders into view. 01394_ 0G-EKU(g) destroyed. 01401_ Ion Engine destroyed. 01402_ Aluminum Leg destroyed. 01403_ Assault Rifle destroyed. 01404_ Aluminum Leg destroyed. 01404_ System corrupted by crushing effect (+4). Map ----- +----------------------------------------------------+ | | | | | | | | | | | | | | | | | | | | | | | | | | | | | | | | | | | | | | | | | | | ?????????????????????????????????????????? | | ????????????????????????????????###??????? | | ???????????????????????????##### ##?????? | | ???????????????????????##### ## #?????? | | ?????????????????# #### @a;# " #?????? | | ????????????????# aaa ####=%!##????? | | ????????????????## a #??# ##???? | | ?????????????????# aaaaa#??# #???? | | ?????????????????# a #### #???? | | ?????????????????# a ##???? | | ????????????????# ### ## ##????? | | ????????????????# ##?#??####?????? | | ????????????????## ##??????????????? | | ?????????????????# ###?????g?g????????? | | ?????????????????## #???????????????????? | | ??????????????????# ????????????????????? | | ??????????????????# ?????????????????????? | | ??????????????????# ?????????????????????? | | ?????????????????????????????????????????? | | ?????????????????????????????????????????? | | ?????????????????????????????????????????? | | ?????????????????????????????????????????? | | ?????????????????????????????????????????? | | ?????????????????????????????????????????? | | ?????????????????????????????????????????? | | ?????????????????????????????????????????? | | ?????????????????????????????????????????? | | ?????????????????????????????????????????? | | ?????????????????????????????????????????? | +----------------------------------------------------+ Best States ------------- Heat Dissipation 25 Energy Generation 10 Energy Capacity 250 Matter Stores 300 Matter Capacity 300 Sight Range 16 Terrain Scan Density 10 Evasion (%) 55 Offensive Hacking 10 Item Schematics ----------------- None Robot Schematics ------------------ None Fabricated ------------ Nothing Alien Tech Used ----------------- None Achievements -------------- None Challenges ------------ None Game ------ Seed TripodAerolevSabre Manual? 0 Play Time 00:12:49 Cumulative 37.1 hours Start 2024.08.13 @ 18:37:47 End 2024.08.13 @ 18:50:35 Sessions 1 Manual Loads 0 Difficulty Rogue Special Mode None Game No. 64 Rogue 60 Adventurer 4 Explorer 0 Win Type - Total 0 Types 0/0/0/0/0/0/0/0/0 Lore% 10 Gallery% 32 Achievement% 23 Wizard Run 0 Options --------- Layout 1 ASCII 0 Keyboard 0 Movement Mouse Keybinds 0 Fullscreen 2 Font 24/Smallcaps Map View 50x35 Zoom Use 0% Tactical HUD 1 Map Filters NONE Filters NONE Steam 1 RUN: 8ac5f6c0-d9cc-4de6-afd6-de0815e3303b